[Event "Titled Tuesday Blitz March 14 Late 2023"]
[White "Caruana, Fabiano"]
[Black "Cardoso Cardoso, Jose Gabriel"]
[WhiteFideId "2020009"]
[BlackFideId "4430492"]
[WhiteElo "2818"]
[BlackElo "2496"]
[Result "1-0"]
[Round "05"]
[TimeControl "180+1"]
[Date "2023.03.14"]
[WhiteClock "0:00:27"]
[BlackClock "0:00:03"]

1. c4 {[%clk 0:02:55]}  g6 {[%clk 0:02:53]} 2. g3 {[%clk 0:02:54]}  Bg7 {[%clk 0:02:52]} 3. Bg2 {[%clk 0:02:55]}  c5 {[%clk 0:02:53]} 4. Nc3 {[%clk 0:02:55]}  Nc6 {[%clk 0:02:53]} 5. e3 {[%clk 0:02:54]}  d6 {[%clk 0:02:49]} 6. Nge2 {[%clk 0:02:53]}  e5 {[%clk 0:02:50]} 7. O-O {[%clk 0:02:52]}  Nge7 {[%clk 0:02:50]} 8. b3 {[%clk 0:02:51]}  O-O {[%clk 0:02:50]} 9. Bb2 {[%clk 0:02:51]}  Be6 {[%clk 0:02:42]} 10. Nd5 {[%clk 0:02:50]}  Qd7 {[%clk 0:02:42]} 11. Nec3 {[%clk 0:02:49]}  Bh3 {[%clk 0:02:29]} 12. d3 {[%clk 0:02:43]}  Bxg2 {[%clk 0:02:27]} 13. Kxg2 {[%clk 0:02:44]}  Nxd5 {[%clk 0:02:27]} 14. Nxd5 {[%clk 0:02:40]}  Ne7 {[%clk 0:02:27]} 15. Qf3 {[%clk 0:02:36]}  Nxd5 {[%clk 0:02:09]} 16. Qxd5 {[%clk 0:02:37]}  Rac8 {[%clk 0:02:08]} 17. e4 {[%clk 0:02:32]}  Qc6 {[%clk 0:02:06]} 18. Qxc6 {[%clk 0:02:31]}  Rxc6 {[%clk 0:02:06]} 19. Bc3 {[%clk 0:02:29]}  f5 {[%clk 0:02:04]} 20. Rab1 {[%clk 0:02:25]}  b6 {[%clk 0:01:59]} 21. f3 {[%clk 0:02:25]}  Bh6 {[%clk 0:01:43]} 22. Kf2 {[%clk 0:02:19]}  Kf7 {[%clk 0:01:40]} 23. Ke2 {[%clk 0:02:19]}  Ke6 {[%clk 0:01:40]} 24. b4 {[%clk 0:02:19]}  cxb4 {[%clk 0:01:26]} 25. Rxb4 {[%clk 0:02:20]}  fxe4 {[%clk 0:01:24]} 26. fxe4 {[%clk 0:02:16]}  Rxf1 {[%clk 0:01:24]} 27. Kxf1 {[%clk 0:02:17]}  Be3 {[%clk 0:01:22]} 28. Ke2 {[%clk 0:02:17]}  Bc5 {[%clk 0:01:21]} 29. Rb1 {[%clk 0:02:16]}  Rc7 {[%clk 0:01:20]} 30. a4 {[%clk 0:01:48]}  a5 {[%clk 0:01:15]} 31. Bd2 {[%clk 0:01:44]}  Bd4 {[%clk 0:00:57]} 32. Bg5 {[%clk 0:01:34]}  Bc5 {[%clk 0:00:52]} 33. Be3 {[%clk 0:01:26]}  Bxe3 {[%clk 0:00:52]} 34. Kxe3 {[%clk 0:01:27]}  Rc6 {[%clk 0:00:52]} 35. g4 {[%clk 0:01:26]}  Ke7 {[%clk 0:00:45]} 36. g5 {[%clk 0:01:24]}  Ke6 {[%clk 0:00:45]} 37. Rf1 {[%clk 0:01:21]}  Rc8 {[%clk 0:00:40]} 38. Rh1 {[%clk 0:01:16]}  Kd7 {[%clk 0:00:34]} 39. Rb1 {[%clk 0:01:14]}  Rc6 {[%clk 0:00:33]} 40. Rf1 {[%clk 0:01:14]}  Ke7 {[%clk 0:00:34]} 41. h4 {[%clk 0:01:14]}  Rc8 {[%clk 0:00:31]} 42. Rb1 {[%clk 0:01:14]}  Rc6 {[%clk 0:00:25]} 43. Rh1 {[%clk 0:01:13]}  Rc8 {[%clk 0:00:23]} 44. h5 {[%clk 0:01:13]}  Kf7 {[%clk 0:00:08]} 45. Rf1+ {[%clk 0:01:11]}  Ke7 {[%clk 0:00:06]} 46. Rh1 {[%clk 0:00:58]}  Kf7 {[%clk 0:00:06]} 47. hxg6+ {[%clk 0:00:59]}  Kxg6 {[%clk 0:00:06]} 48. Rh6+ {[%clk 0:00:59]}  Kxg5 {[%clk 0:00:07]} 49. Rxh7 {[%clk 0:00:59]}  Kf6 {[%clk 0:00:04]} 50. Rb7 {[%clk 0:00:57]}  Rc6 {[%clk 0:00:04]} 51. Kf3 {[%clk 0:00:56]}  Ke6 {[%clk 0:00:04]} 52. Kg4 {[%clk 0:00:57]}  Kf6 {[%clk 0:00:04]} 53. Rb8 {[%clk 0:00:56]}  Kg6 {[%clk 0:00:03]} 54. Rg8+ {[%clk 0:00:51]}  Kf6 {[%clk 0:00:03]} 55. Rf8+ {[%clk 0:00:50]}  Kg6 {[%clk 0:00:03]} 56. Rb8 {[%clk 0:00:50]}  Kf6 {[%clk 0:00:03]} 57. Kh5 {[%clk 0:00:50]}  Kf7 {[%clk 0:00:02]} 58. Kg5 {[%clk 0:00:51]}  Ke6 {[%clk 0:00:02]} 59. Kg6 {[%clk 0:00:51]}  Ke7 {[%clk 0:00:03]} 60. Kf5 {[%clk 0:00:50]}  Kd7 {[%clk 0:00:03]} 61. Rb7+ {[%clk 0:00:47]}  Kc8 {[%clk 0:00:02]} 62. Rh7 {[%clk 0:00:47]}  Rc7 {[%clk 0:00:02]} 63. Rh8+ {[%clk 0:00:31]}  Kd7 {[%clk 0:00:02]} 64. Rb8 {[%clk 0:00:30]}  Kc6 {[%clk 0:00:03]} 65. Ke6 {[%clk 0:00:30]}  Rh7 {[%clk 0:00:02]} 66. Rc8+ {[%clk 0:00:29]}  Rc7 {[%clk 0:00:02]} 67. Rd8 {[%clk 0:00:28]}  Kc5 {[%clk 0:00:01]} 68. Rxd6 {[%clk 0:00:28]}  Kb4 {[%clk 0:00:02]} 69. Rxb6+ {[%clk 0:00:28]}  Kxa4 {[%clk 0:00:02]} 70. Kxe5 {[%clk 0:00:28]}  Ka3 {[%clk 0:00:03]} 71. Kd6 {[%clk 0:00:27]}  a4 {[%clk 0:00:03]} 72. Kxc7 {[%clk 0:00:27]} 1-0


[Site "https://www.chess.com"]

[Event "Titled Tuesday Blitz March 14 Late 2023"]
[White "Daneshvar, Bardiya"]
[Black "Matinian, Nikita"]
[WhiteFideId "12576468"]
[BlackFideId "24129100"]
[WhiteElo "2468"]
[BlackElo "2422"]
[Result "1-0"]
[Round "05"]
[TimeControl "180+1"]
[Date "2023.03.14"]
[WhiteClock "0:00:10"]
[BlackClock "0:00:01"]

1. b3 {[%clk 0:02:59]}  Nf6 {[%clk 0:02:58]} 2. Bb2 {[%clk 0:02:57]}  g6 {[%clk 0:02:59]} 3. g3 {[%clk 0:02:55]}  Bg7 {[%clk 0:02:59]} 4. Bg2 {[%clk 0:02:55]}  c5 {[%clk 0:02:59]} 5. c4 {[%clk 0:02:55]}  d6 {[%clk 0:02:56]} 6. Nf3 {[%clk 0:02:55]}  e5 {[%clk 0:02:55]} 7. O-O {[%clk 0:02:55]}  Nc6 {[%clk 0:02:55]} 8. Nc3 {[%clk 0:02:55]}  O-O {[%clk 0:02:55]} 9. d3 {[%clk 0:02:56]}  h6 {[%clk 0:02:42]} 10. Nd2 {[%clk 0:02:56]}  Be6 {[%clk 0:02:39]} 11. Nde4 {[%clk 0:02:49]}  Ne8 {[%clk 0:02:36]} 12. Nd5 {[%clk 0:02:47]}  f5 {[%clk 0:02:36]} 13. Nec3 {[%clk 0:02:47]}  Qd7 {[%clk 0:02:31]} 14. e3 {[%clk 0:02:44]}  g5 {[%clk 0:02:28]} 15. Ne2 {[%clk 0:02:37]}  Nf6 {[%clk 0:02:24]} 16. a3 {[%clk 0:02:27]}  Rad8 {[%clk 0:01:53]} 17. b4 {[%clk 0:02:25]}  cxb4 {[%clk 0:01:47]} 18. axb4 {[%clk 0:02:26]}  b6 {[%clk 0:01:34]} 19. b5 {[%clk 0:02:25]}  Na5 {[%clk 0:01:25]} 20. Bc3 {[%clk 0:02:18]}  Bxd5 {[%clk 0:01:21]} 21. cxd5 {[%clk 0:02:17]}  Qxb5 {[%clk 0:01:20]} 22. Bxa5 {[%clk 0:02:16]}  bxa5 {[%clk 0:01:20]} 23. Ra4 {[%clk 0:02:11]}  Nxd5 {[%clk 0:01:09]} 24. Qa1 {[%clk 0:02:04]}  Nf6 {[%clk 0:00:53]} 25. Rd1 {[%clk 0:01:54]}  e4 {[%clk 0:00:51]} 26. Rxa5 {[%clk 0:01:52]}  Qe8 {[%clk 0:00:38]} 27. Rxf5 {[%clk 0:01:45]}  exd3 {[%clk 0:00:36]} 28. Rxd3 {[%clk 0:01:45]}  Ne4 {[%clk 0:00:32]} 29. Qa5 {[%clk 0:01:39]}  Nc5 {[%clk 0:00:27]} 30. Rdd5 {[%clk 0:01:31]}  Rxf5 {[%clk 0:00:23]} 31. Rxf5 {[%clk 0:01:32]}  Rb8 {[%clk 0:00:20]} 32. Bd5+ {[%clk 0:01:30]}  Kh8 {[%clk 0:00:20]} 33. Qxa7 {[%clk 0:01:30]}  Nd3 {[%clk 0:00:16]} 34. Rf7 {[%clk 0:00:50]}  Rb1+ {[%clk 0:00:12]} 35. Kg2 {[%clk 0:00:51]}  g4 {[%clk 0:00:07]} 36. Ng1 {[%clk 0:00:35]}  Ne1+ {[%clk 0:00:06]} 37. Kh1 {[%clk 0:00:35]}  Nf3 {[%clk 0:00:02]} 38. Bxf3 {[%clk 0:00:35]}  gxf3 {[%clk 0:00:02]} 39. Rxg7 {[%clk 0:00:31]}  Qe4 {[%clk 0:00:02]} 40. h4 {[%clk 0:00:18]}  Qf5 {[%clk 0:00:02]} 41. Kh2 {[%clk 0:00:13]}  Rb2 {[%clk 0:00:02]} 42. Nh3 {[%clk 0:00:10]}  Rb1 {[%clk 0:00:03]} 43. g4 {[%clk 0:00:09]}  Qe5+ {[%clk 0:00:02]} 44. Nf4 {[%clk 0:00:10]}  Qxg7 {[%clk 0:00:02]} 45. Qa8+ {[%clk 0:00:10]}  Qg8 {[%clk 0:00:03]} 46. Qxf3 {[%clk 0:00:09]}  Rb2 {[%clk 0:00:01]} 47. h5 {[%clk 0:00:09]}  Qg5 {[%clk 0:00:01]} 48. Ng6+ {[%clk 0:00:10]}  Kh7 {[%clk 0:00:01]} 49. Qf7# {[%clk 0:00:10]} 1-0


[Site "https://www.chess.com"]

[Event "Titled Tuesday Blitz March 14 Late 2023"]
[White "Deac, Bogdan-Daniel"]
[Black "Shubin, Kirill"]
[WhiteFideId "1226380"]
[BlackFideId "34119962"]
[WhiteElo "2649"]
[BlackElo "2407"]
[Result "1-0"]
[Round "05"]
[TimeControl "180+1"]
[Date "2023.03.14"]
[WhiteClock "0:00:04"]
[BlackClock "0:00:07"]

1. b3 {[%clk 0:02:57]}  e5 {[%clk 0:02:56]} 2. Bb2 {[%clk 0:02:56]}  Nc6 {[%clk 0:02:56]} 3. Nf3 {[%clk 0:02:57]}  Bd6 {[%clk 0:02:50]} 4. d3 {[%clk 0:02:44]}  Nf6 {[%clk 0:02:45]} 5. g3 {[%clk 0:02:44]}  O-O {[%clk 0:02:45]} 6. Bg2 {[%clk 0:02:44]}  Re8 {[%clk 0:02:44]} 7. O-O {[%clk 0:02:44]}  Bf8 {[%clk 0:02:43]} 8. c4 {[%clk 0:02:44]}  d6 {[%clk 0:02:42]} 9. a3 {[%clk 0:02:42]}  h6 {[%clk 0:02:39]} 10. Nbd2 {[%clk 0:02:38]}  a5 {[%clk 0:02:37]} 11. Qc2 {[%clk 0:02:33]}  Bf5 {[%clk 0:02:32]} 12. e4 {[%clk 0:02:31]}  Bh7 {[%clk 0:02:31]} 13. Bc3 {[%clk 0:02:26]}  g6 {[%clk 0:02:24]} 14. b4 {[%clk 0:02:24]}  Bg7 {[%clk 0:02:23]} 15. Qb2 {[%clk 0:02:16]}  b6 {[%clk 0:02:20]} 16. d4 {[%clk 0:01:50]}  exd4 {[%clk 0:02:19]} 17. Nxd4 {[%clk 0:01:50]}  Nxd4 {[%clk 0:02:06]} 18. Bxd4 {[%clk 0:01:49]}  axb4 {[%clk 0:02:00]} 19. axb4 {[%clk 0:01:48]}  Rxa1 {[%clk 0:01:59]} 20. Rxa1 {[%clk 0:01:49]}  g5 {[%clk 0:01:56]} 21. f3 {[%clk 0:01:28]}  Nh5 {[%clk 0:01:28]} 22. Nb3 {[%clk 0:00:51]}  c5 {[%clk 0:00:56]} 23. Bxg7 {[%clk 0:00:50]}  Nxg7 {[%clk 0:00:56]} 24. Rd1 {[%clk 0:00:50]}  Qe7 {[%clk 0:00:51]} 25. Qd2 {[%clk 0:00:44]}  g4 {[%clk 0:00:38]} 26. Qxh6 {[%clk 0:00:20]}  gxf3 {[%clk 0:00:35]} 27. Bxf3 {[%clk 0:00:21]}  Bxe4 {[%clk 0:00:33]} 28. Re1 {[%clk 0:00:20]}  f5 {[%clk 0:00:32]} 29. bxc5 {[%clk 0:00:08]}  bxc5 {[%clk 0:00:31]} 30. Nd2 {[%clk 0:00:08]}  Qe5 {[%clk 0:00:22]} 31. Bxe4 {[%clk 0:00:08]}  Qd4+ {[%clk 0:00:20]} 32. Qe3 {[%clk 0:00:08]}  fxe4 {[%clk 0:00:18]} 33. Qxd4 {[%clk 0:00:07]}  cxd4 {[%clk 0:00:19]} 34. Rxe4 {[%clk 0:00:07]}  Rxe4 {[%clk 0:00:19]} 35. Nxe4 {[%clk 0:00:08]}  Nf5 {[%clk 0:00:19]} 36. Kf2 {[%clk 0:00:06]}  Kf7 {[%clk 0:00:18]} 37. Ke2 {[%clk 0:00:05]}  Ke6 {[%clk 0:00:17]} 38. Kd3 {[%clk 0:00:05]}  Ke5 {[%clk 0:00:17]} 39. Ng5 {[%clk 0:00:04]}  d5 {[%clk 0:00:12]} 40. Nf3+ {[%clk 0:00:04]}  Kd6 {[%clk 0:00:12]} 41. Nxd4 {[%clk 0:00:04]}  dxc4+ {[%clk 0:00:12]} 42. Kxc4 {[%clk 0:00:05]}  Ne3+ {[%clk 0:00:11]} 43. Kd3 {[%clk 0:00:05]}  Ng4 {[%clk 0:00:11]} 44. Nf3 {[%clk 0:00:04]}  Ke6 {[%clk 0:00:12]} 45. Ke4 {[%clk 0:00:04]}  Nf2+ {[%clk 0:00:12]} 46. Kf4 {[%clk 0:00:04]}  Nd3+ {[%clk 0:00:12]} 47. Kg5 {[%clk 0:00:04]}  Kd5 {[%clk 0:00:12]} 48. h4 {[%clk 0:00:04]}  Ke4 {[%clk 0:00:12]} 49. Nd2+ {[%clk 0:00:04]}  Ke3 {[%clk 0:00:12]} 50. Nc4+ {[%clk 0:00:04]}  Kf3 {[%clk 0:00:12]} 51. h5 {[%clk 0:00:04]}  Kxg3 {[%clk 0:00:11]} 52. h6 {[%clk 0:00:04]}  Nf4 {[%clk 0:00:08]} 53. h7 {[%clk 0:00:04]}  Ne6+ {[%clk 0:00:08]} 54. Kh6 {[%clk 0:00:04]}  Nd8 {[%clk 0:00:07]} 55. Ne5 {[%clk 0:00:04]} 1-0


[Site "https://www.chess.com"]

[Event "Titled Tuesday Blitz March 14 Late 2023"]
[White "Di Berardino, Diego Rafael"]
[Black "Buchenau, Frank"]
[WhiteFideId "2105446"]
[BlackFideId "4604350"]
[WhiteElo "2432"]
[BlackElo "2157"]
[Result "1-0"]
[Round "05"]
[TimeControl "180+1"]
[Date "2023.03.14"]
[WhiteClock "0:00:46"]
[BlackClock "0:00:11"]

1. e4 {[%clk 0:02:57]}  e6 {[%clk 0:02:55]} 2. d4 {[%clk 0:02:54]}  d5 {[%clk 0:02:55]} 3. Nd2 {[%clk 0:02:55]}  c5 {[%clk 0:02:54]} 4. exd5 {[%clk 0:02:55]}  Qxd5 {[%clk 0:02:53]} 5. dxc5 {[%clk 0:02:54]}  Nf6 {[%clk 0:02:50]} 6. Ngf3 {[%clk 0:02:52]}  Nbd7 {[%clk 0:02:48]} 7. Bc4 {[%clk 0:02:50]}  Qxc5 {[%clk 0:02:46]} 8. O-O {[%clk 0:02:49]}  Bd6 {[%clk 0:02:40]} 9. Qe2 {[%clk 0:02:41]}  O-O {[%clk 0:02:39]} 10. Bd3 {[%clk 0:02:36]}  Qc7 {[%clk 0:02:37]} 11. Ne4 {[%clk 0:02:36]}  Nxe4 {[%clk 0:02:34]} 12. Qxe4 {[%clk 0:02:36]}  Nf6 {[%clk 0:02:23]} 13. Qh4 {[%clk 0:02:35]}  e5 {[%clk 0:01:50]} 14. Bg5 {[%clk 0:02:29]}  e4 {[%clk 0:01:49]} 15. Bxf6 {[%clk 0:02:18]}  Bf5 {[%clk 0:01:12]} 16. Bxe4 {[%clk 0:01:33]}  Bxe4 {[%clk 0:01:11]} 17. Qxe4 {[%clk 0:01:21]}  gxf6 {[%clk 0:01:10]} 18. Qf5 {[%clk 0:01:15]}  Be5 {[%clk 0:01:01]} 19. c3 {[%clk 0:01:12]}  Qc8 {[%clk 0:00:58]} 20. Qh5 {[%clk 0:01:10]}  Re8 {[%clk 0:00:46]} 21. Rfe1 {[%clk 0:01:10]}  Qc5 {[%clk 0:00:19]} 22. Re3 {[%clk 0:00:58]}  Rad8 {[%clk 0:00:17]} 23. Rae1 {[%clk 0:00:57]}  Qc4 {[%clk 0:00:12]} 24. Nxe5 {[%clk 0:00:47]}  Rxe5 {[%clk 0:00:11]} 25. Rxe5 {[%clk 0:00:46]}  fxe5 {[%clk 0:00:11]} 26. Qg5+ {[%clk 0:00:46]} 1-0


[Site "https://www.chess.com"]

[Event "Titled Tuesday Blitz March 14 Late 2023"]
[White "Diaz Perez, Michel Alejandro"]
[Black "Svane, Frederik"]
[WhiteFideId "3517179"]
[BlackFideId "12923044"]
[WhiteElo "2333"]
[BlackElo "2502"]
[Result "0-1"]
[Round "05"]
[TimeControl "180+1"]
[Date "2023.03.14"]
[WhiteClock "0:00:03"]
[BlackClock "0:00:58"]

1. Nf3 {[%clk 0:03:00]}  d5 {[%clk 0:03:00]} 2. c4 {[%clk 0:02:59]}  e6 {[%clk 0:02:59]} 3. e3 {[%clk 0:02:53]}  Nf6 {[%clk 0:02:59]} 4. Qc2 {[%clk 0:02:49]}  c5 {[%clk 0:02:54]} 5. cxd5 {[%clk 0:02:46]}  exd5 {[%clk 0:02:55]} 6. d4 {[%clk 0:02:46]}  cxd4 {[%clk 0:02:52]} 7. Nxd4 {[%clk 0:02:47]}  Bd6 {[%clk 0:02:50]} 8. Nc3 {[%clk 0:02:46]}  O-O {[%clk 0:02:49]} 9. Bd3 {[%clk 0:02:47]}  Nc6 {[%clk 0:02:45]} 10. Nxc6 {[%clk 0:02:46]}  bxc6 {[%clk 0:02:46]} 11. Ne2 {[%clk 0:02:45]}  c5 {[%clk 0:02:39]} 12. h3 {[%clk 0:02:41]}  g6 {[%clk 0:02:36]} 13. b3 {[%clk 0:02:39]}  Be6 {[%clk 0:02:32]} 14. Nc3 {[%clk 0:02:16]}  d4 {[%clk 0:02:26]} 15. exd4 {[%clk 0:02:17]}  cxd4 {[%clk 0:02:26]} 16. Nb5 {[%clk 0:02:14]}  Rc8 {[%clk 0:02:26]} 17. Qb2 {[%clk 0:02:07]}  Bb4+ {[%clk 0:02:18]} 18. Bd2 {[%clk 0:02:07]}  Bxd2+ {[%clk 0:02:19]} 19. Qxd2 {[%clk 0:02:06]}  a6 {[%clk 0:02:09]} 20. Na3 {[%clk 0:02:05]}  Qd6 {[%clk 0:02:10]} 21. Nc2 {[%clk 0:02:02]}  Nd5 {[%clk 0:01:56]} 22. O-O {[%clk 0:02:02]}  Nf4 {[%clk 0:01:56]} 23. Be4 {[%clk 0:01:57]}  Rfd8 {[%clk 0:01:54]} 24. Rfd1 {[%clk 0:01:53]}  d3 {[%clk 0:01:52]} 25. Ne3 {[%clk 0:01:45]}  Ne2+ {[%clk 0:01:52]} 26. Kh1 {[%clk 0:01:44]}  Nc3 {[%clk 0:01:51]} 27. Bxd3 {[%clk 0:01:18]}  Nxd1 {[%clk 0:01:48]} 28. Rxd1 {[%clk 0:01:19]}  Qc6 {[%clk 0:01:30]} 29. Kg1 {[%clk 0:01:10]}  Rd4 {[%clk 0:01:27]} 30. Qe2 {[%clk 0:01:05]}  Rcd8 {[%clk 0:01:27]} 31. Bc2 {[%clk 0:00:35]}  Rxd1+ {[%clk 0:01:27]} 32. Bxd1 {[%clk 0:00:34]}  a5 {[%clk 0:01:21]} 33. Bc2 {[%clk 0:00:33]}  Qc3 {[%clk 0:01:20]} 34. Be4 {[%clk 0:00:31]}  Rd2 {[%clk 0:01:19]} 35. Qb5 {[%clk 0:00:28]}  Rxa2 {[%clk 0:01:10]} 36. Bd5 {[%clk 0:00:17]}  Qa1+ {[%clk 0:01:04]} 37. Kh2 {[%clk 0:00:16]}  Qe5+ {[%clk 0:01:03]} 38. g3 {[%clk 0:00:02]}  Rxf2+ {[%clk 0:01:03]} 39. Kh1 {[%clk 0:00:03]}  Qa1+ {[%clk 0:00:58]} 0-1


[Site "https://www.chess.com"]

[Event "Titled Tuesday Blitz March 14 Late 2023"]
[White "Domingo Nunez, Ruben"]
[Black "Miszler, Levente"]
[WhiteFideId "22245570"]
[BlackFideId "763276"]
[WhiteElo "2404"]
[BlackElo "2176"]
[Result "1/2-1/2"]
[Round "05"]
[TimeControl "180+1"]
[Date "2023.03.14"]
[WhiteClock "0:00:04"]
[BlackClock "0:00:10"]

1. e4 {[%clk 0:02:56]}  e6 {[%clk 0:02:59]} 2. b3 {[%clk 0:02:54]}  a5 {[%clk 0:02:54]} 3. a4 {[%clk 0:02:48]}  d5 {[%clk 0:02:46]} 4. Bb2 {[%clk 0:02:48]}  Nf6 {[%clk 0:02:45]} 5. e5 {[%clk 0:02:47]}  Nfd7 {[%clk 0:02:45]} 6. h4 {[%clk 0:02:48]}  f6 {[%clk 0:02:40]} 7. exf6 {[%clk 0:02:43]}  Nxf6 {[%clk 0:02:41]} 8. h5 {[%clk 0:02:44]}  Be7 {[%clk 0:02:35]} 9. h6 {[%clk 0:02:41]}  g6 {[%clk 0:02:35]} 10. Nf3 {[%clk 0:02:42]}  O-O {[%clk 0:02:35]} 11. Bd3 {[%clk 0:02:38]}  Nc6 {[%clk 0:02:29]} 12. Qe2 {[%clk 0:02:36]}  Bd6 {[%clk 0:02:24]} 13. Na3 {[%clk 0:02:32]}  e5 {[%clk 0:02:21]} 14. Bb5 {[%clk 0:02:18]}  e4 {[%clk 0:02:07]} 15. Ng5 {[%clk 0:02:17]}  Ne5 {[%clk 0:02:02]} 16. f4 {[%clk 0:01:58]}  exf3 {[%clk 0:01:58]} 17. gxf3 {[%clk 0:01:58]}  c6 {[%clk 0:01:57]} 18. O-O-O {[%clk 0:01:58]}  Re8 {[%clk 0:01:47]} 19. Bd3 {[%clk 0:01:51]}  Nxd3+ {[%clk 0:01:43]} 20. Qxd3 {[%clk 0:01:52]}  Bf5 {[%clk 0:01:41]} 21. Qd4 {[%clk 0:01:42]}  Be5 {[%clk 0:01:37]} 22. Qc5 {[%clk 0:01:38]}  Bxb2+ {[%clk 0:01:31]} 23. Kxb2 {[%clk 0:01:38]}  Nd7 {[%clk 0:01:32]} 24. Qd4 {[%clk 0:01:33]}  Qf6 {[%clk 0:01:25]} 25. Qxf6 {[%clk 0:01:32]}  Nxf6 {[%clk 0:01:26]} 26. Rde1 {[%clk 0:01:31]}  Nh5 {[%clk 0:01:13]} 27. Re3 {[%clk 0:01:23]}  Rxe3 {[%clk 0:01:07]} 28. dxe3 {[%clk 0:01:24]}  Re8 {[%clk 0:00:58]} 29. Re1 {[%clk 0:01:24]}  Ng3 {[%clk 0:00:56]} 30. Kc3 {[%clk 0:01:21]}  Bd7 {[%clk 0:00:55]} 31. e4 {[%clk 0:01:17]}  dxe4 {[%clk 0:00:49]} 32. fxe4 {[%clk 0:01:10]}  Re5 {[%clk 0:00:48]} 33. Nf3 {[%clk 0:01:06]}  Rxe4 {[%clk 0:00:45]} 34. Rxe4 {[%clk 0:01:01]}  Nxe4+ {[%clk 0:00:45]} 35. Kd4 {[%clk 0:01:02]}  Nf6 {[%clk 0:00:43]} 36. Nc4 {[%clk 0:01:01]}  Bf5 {[%clk 0:00:39]} 37. Nxa5 {[%clk 0:00:58]}  Bxc2 {[%clk 0:00:38]} 38. Nxb7 {[%clk 0:00:59]}  Bxb3 {[%clk 0:00:38]} 39. a5 {[%clk 0:01:00]}  Nd7 {[%clk 0:00:32]} 40. Ne5 {[%clk 0:00:38]}  Nb8 {[%clk 0:00:27]} 41. Nc5 {[%clk 0:00:37]}  g5 {[%clk 0:00:18]} 42. a6 {[%clk 0:00:34]}  Nxa6 {[%clk 0:00:17]} 43. Nxa6 {[%clk 0:00:35]}  Kf8 {[%clk 0:00:14]} 44. Nc5 {[%clk 0:00:30]}  Bc2 {[%clk 0:00:14]} 45. Ne6+ {[%clk 0:00:13]}  Ke7 {[%clk 0:00:14]} 46. Nxg5 {[%clk 0:00:13]}  Kf6 {[%clk 0:00:14]} 47. Ngf7 {[%clk 0:00:10]}  Bb3 {[%clk 0:00:11]} 48. Nd6 {[%clk 0:00:08]}  Kg5 {[%clk 0:00:09]} 49. Kc3 {[%clk 0:00:09]}  Kxh6 {[%clk 0:00:08]} 50. Kxb3 {[%clk 0:00:09]}  Kg5 {[%clk 0:00:09]} 51. Nxc6 {[%clk 0:00:06]}  h5 {[%clk 0:00:09]} 52. Ne4+ {[%clk 0:00:07]}  Kf4 {[%clk 0:00:09]} 53. Nf2 {[%clk 0:00:06]}  h4 {[%clk 0:00:10]} 54. Nd4 {[%clk 0:00:06]}  h3 {[%clk 0:00:10]} 55. Nxh3+ {[%clk 0:00:04]} 1/2-1/2


[Site "https://www.chess.com"]

[Event "Titled Tuesday Blitz March 14 Late 2023"]
[White "Drygalov, Andrey"]
[Black "Thomforde-Toates, Noah"]
[WhiteFideId "24171735"]
[BlackFideId "30951992"]
[WhiteElo "2471"]
[BlackElo "2627"]
[Result "1-0"]
[Round "05"]
[TimeControl "180+1"]
[Date "2023.03.14"]
[WhiteClock "0:00:26"]
[BlackClock "0:00:05"]

1. e4 {[%clk 0:03:00]}  c5 {[%clk 0:02:58]} 2. Nf3 {[%clk 0:03:00]}  g6 {[%clk 0:02:58]} 3. d4 {[%clk 0:03:00]}  cxd4 {[%clk 0:02:59]} 4. Nxd4 {[%clk 0:03:01]}  Bg7 {[%clk 0:02:59]} 5. c4 {[%clk 0:03:01]}  Nc6 {[%clk 0:03:00]} 6. Be3 {[%clk 0:03:02]}  Nf6 {[%clk 0:03:00]} 7. Nc3 {[%clk 0:03:02]}  Ng4 {[%clk 0:03:00]} 8. Qxg4 {[%clk 0:03:01]}  Nxd4 {[%clk 0:02:59]} 9. Qd1 {[%clk 0:03:02]}  e5 {[%clk 0:03:00]} 10. Bd3 {[%clk 0:02:55]}  O-O {[%clk 0:02:59]} 11. O-O {[%clk 0:02:55]}  d6 {[%clk 0:02:59]} 12. Ne2 {[%clk 0:02:47]}  Be6 {[%clk 0:02:37]} 13. Nxd4 {[%clk 0:02:45]}  exd4 {[%clk 0:02:36]} 14. Bf4 {[%clk 0:02:45]}  Rc8 {[%clk 0:02:29]} 15. Rc1 {[%clk 0:02:43]}  Qb6 {[%clk 0:02:18]} 16. Qd2 {[%clk 0:02:42]}  a5 {[%clk 0:02:14]} 17. b3 {[%clk 0:02:40]}  Qc5 {[%clk 0:02:13]} 18. Bh6 {[%clk 0:02:35]}  Rfe8 {[%clk 0:01:52]} 19. Bxg7 {[%clk 0:02:33]}  Kxg7 {[%clk 0:01:53]} 20. Rfd1 {[%clk 0:02:31]}  Qa3 {[%clk 0:01:32]} 21. Bb1 {[%clk 0:02:28]}  Red8 {[%clk 0:01:21]} 22. Qxd4+ {[%clk 0:02:28]}  Kg8 {[%clk 0:01:21]} 23. h3 {[%clk 0:02:26]}  a4 {[%clk 0:01:19]} 24. Rc3 {[%clk 0:02:19]}  Qb4 {[%clk 0:01:13]} 25. Rcd3 {[%clk 0:02:18]}  axb3 {[%clk 0:01:06]} 26. axb3 {[%clk 0:02:18]}  b5 {[%clk 0:00:59]} 27. cxb5 {[%clk 0:02:13]}  Qxb5 {[%clk 0:00:58]} 28. Qe3 {[%clk 0:02:13]}  Rb8 {[%clk 0:00:51]} 29. Bc2 {[%clk 0:02:11]}  Rdc8 {[%clk 0:00:50]} 30. R1d2 {[%clk 0:02:10]}  Qe5 {[%clk 0:00:43]} 31. f4 {[%clk 0:02:03]}  Qa1+ {[%clk 0:00:42]} 32. Kh2 {[%clk 0:02:02]}  Qc1 {[%clk 0:00:40]} 33. Bd1 {[%clk 0:01:51]}  h5 {[%clk 0:00:21]} 34. f5 {[%clk 0:01:41]}  gxf5 {[%clk 0:00:21]} 35. Bxh5 {[%clk 0:01:36]}  fxe4 {[%clk 0:00:19]} 36. Qxe4 {[%clk 0:01:34]}  Qc5 {[%clk 0:00:17]} 37. Rxd6 {[%clk 0:01:28]}  Qxh5 {[%clk 0:00:17]} 38. Qf4 {[%clk 0:00:53]}  Rxb3 {[%clk 0:00:11]} 39. Rd8+ {[%clk 0:00:37]}  Rxd8 {[%clk 0:00:10]} 40. Rxd8+ {[%clk 0:00:37]}  Kh7 {[%clk 0:00:10]} 41. Qd4 {[%clk 0:00:29]}  Rxh3+ {[%clk 0:00:08]} 42. gxh3 {[%clk 0:00:28]}  Qxh3+ {[%clk 0:00:08]} 43. Kg1 {[%clk 0:00:28]}  Qg3+ {[%clk 0:00:09]} 44. Kf1 {[%clk 0:00:26]}  Bh3+ {[%clk 0:00:07]} 45. Ke2 {[%clk 0:00:26]}  Qf4 {[%clk 0:00:05]} 46. Qxf4 {[%clk 0:00:26]} 1-0


[Site "https://www.chess.com"]